[Event "KNSB Bekerfinale"]
[Site "Haarlem, Netherlands"]
[Date "????.??.??"]
[Round "1.1"]
[White "Pavlidis, Antonioa"]
[Black "Schoppen, Casper"]
[Result "1/2-1/2"]
[TimeControl "100 minutes + increment 10 seconds"]
[WhiteTitle "GM"]
[BlackTitle "GM"]
[WhiteFideId "4212312"]
[BlackFideId "1046730"]
[WhiteElo "2584"]
[BlackElo "2558"]

1. e4 {[%clk 01:40:17]} {[%emt 00:00:01]} e5 {[%clk 01:34:43]} {[%emt
00:05:27]} 2. Nf3 {[%clk 01:40:23]} {[%emt 00:00:14]} Nc6 {[%clk 01:34:47]}
{[%emt 00:00:06]} 3. Bb5 {[%clk 01:40:24]} {[%emt 00:00:09]} a6 {[%clk
01:34:49]} {[%emt 00:00:08]} 4. Ba4 {[%clk 01:40:28]} {[%emt 00:00:06]} Nf6
{[%clk 01:34:55]} {[%emt 00:00:05]} 5. O-O {[%clk 01:40:27]} {[%emt 00:00:10]}
Be7 {[%clk 01:35:01]} {[%emt 00:00:05]} 6. d3 {[%clk 01:40:21]} {[%emt
00:00:16]} b5 {[%clk 01:33:58]} {[%emt 00:01:13]} 7. Bb3 {[%clk 01:40:25]}
{[%emt 00:00:05]} d6 {[%clk 01:33:23]} {[%emt 00:00:45]} 8. a3 {[%clk
01:40:28]} {[%emt 00:00:07]} O-O {[%clk 01:33:06]} {[%emt 00:00:27]} 9. Nc3
{[%clk 01:40:19]} {[%emt 00:00:19]} Na5 {[%clk 01:30:57]} {[%emt 00:02:18]} 10.
Ba2 {[%clk 01:40:19]} {[%emt 00:00:09]} c5 {[%clk 01:29:15]} {[%emt 00:01:54]}
11. b4 {[%clk 01:38:24]} {[%emt 00:02:05]} Nc6 {[%clk 01:26:15]} {[%emt
00:03:10]} 12. Nd5 {[%clk 01:38:25]} {[%emt 00:00:09]} Rb8 {[%clk 01:22:34]}
{[%emt 00:03:51]} 13. c3 {[%clk 01:33:46]} {[%emt 00:04:49]} h6 {[%clk
01:20:57]} {[%emt 00:01:48]} 14. h3 {[%clk 01:29:13]} {[%emt 00:04:44]} a5
{[%clk 01:15:37]} {[%emt 00:05:29]} 15. Be3 {[%clk 01:26:18]} {[%emt 00:03:05]}
axb4 {[%clk 01:11:25]} {[%emt 00:04:22]} 16. axb4 {[%clk 01:26:15]} {[%emt
00:00:13]} cxb4 {[%clk 01:11:09]} {[%emt 00:00:26]} 17. Nxb4 {[%clk 01:26:17]}
{[%emt 00:00:08]} Nxb4 {[%clk 01:11:09]} {[%emt 00:00:11]} 18. cxb4 {[%clk
01:26:24]} {[%emt 00:00:03]} Bb7 {[%clk 01:09:35]} {[%emt 00:01:44]} 19. Qd2
{[%clk 01:17:29]} {[%emt 00:09:05]} Kh8 {[%clk 00:49:35]} {[%emt 00:20:09]} 20.
Rfd1 {[%clk 00:57:48]} {[%emt 00:19:50]} Nh7 {[%clk 00:42:14]} {[%emt
00:07:31]} 21. d4 {[%clk 00:57:14]} {[%emt 00:00:44]} Bxe4 {[%clk 00:39:44]}
{[%emt 00:02:41]} 22. dxe5 {[%clk 00:55:53]} {[%emt 00:01:31]} Bxf3 {[%clk
00:35:39]} {[%emt 00:04:15]} 23. gxf3 {[%clk 00:55:51]} {[%emt 00:00:11]} dxe5
{[%clk 00:32:55]} {[%emt 00:02:54]} 24. Qxd8 {[%clk 00:55:40]} Rfxd8 {[%clk
00:31:40]} {[%emt 00:01:46]} 25. Rxd8+ {[%clk 00:55:41]} {[%emt 00:00:10]} Rxd8
{[%clk 00:31:27]} {[%emt 00:00:23]} 26. Bxf7 {[%clk 00:55:32]} {[%emt
00:00:18]} Ng5 {[%clk 00:30:10]} {[%emt 00:01:27]} 27. Bxg5 {[%clk 00:53:38]}
{[%emt 00:02:04]} Bxg5 {[%clk 00:29:28]} {[%emt 00:00:52]} 28. Ra7 {[%clk
00:46:41]} {[%emt 00:07:07]} Rb8 {[%clk 00:26:36]} {[%emt 00:03:02]} 29. Rd7
{[%clk 00:46:24]} {[%emt 00:00:27]} Bc1 {[%clk 00:26:23]} {[%emt 00:00:23]} 30.
Re7 {[%clk 00:45:46]} {[%emt 00:00:48]} Ba3 {[%clk 00:26:20]} {[%emt 00:00:14]}
31. Rxe5 {[%clk 00:44:37]} {[%emt 00:01:19]} Bxb4 {[%clk 00:26:24]} {[%emt
00:00:06]} 32. Re8+ {[%clk 00:44:42]} {[%emt 00:00:05]} Rxe8 {[%clk 00:26:26]}
33. Bxe8 {[%clk 00:44:49]} {[%emt 00:00:11]} Bd6 {[%clk 00:26:24]} {[%emt
00:00:12]} 34. Bxb5 {[%clk 00:44:53]} {[%emt 00:00:05]} g5 {[%clk 00:26:28]}
{[%emt 00:00:06]} 1/2-1/2

[Event "KNSB Bekerfinale"]
[Site "Haarlem, Netherlands"]
[Date "????.??.??"]
[Round "1.2"]
[White "Pham, Khoi"]
[Black "Fridman, Daniel"]
[Result "1/2-1/2"]
[TimeControl "100 minutes + increment 10 seconds"]
[WhiteTitle "IM"]
[BlackTitle "GM"]
[WhiteFideId "1054988"]
[BlackFideId "11600454"]
[WhiteElo "2385"]
[BlackElo "2591"]

1. Nf3 {[%clk 01:36:10]} {[%emt 00:04:08]} Nf6 {[%clk 01:40:10]} {[%emt
00:00:11]} 2. c4 {[%clk 01:35:43]} {[%emt 00:00:38]} e6 {[%clk 01:40:14]}
{[%emt 00:00:06]} 3. g3 {[%clk 01:35:30]} {[%emt 00:00:22]} a6 {[%clk
01:36:14]} {[%emt 00:04:10]} 4. Bg2 {[%clk 01:31:26]} {[%emt 00:04:13]} b5
{[%clk 01:36:07]} {[%emt 00:00:18]} 5. d3 {[%clk 01:28:56]} {[%emt 00:02:40]}
Bb7 {[%clk 01:30:34]} {[%emt 00:05:43]} 6. O-O {[%clk 01:28:18]} {[%emt
00:00:46]} c5 {[%clk 01:28:53]} {[%emt 00:01:52]} 7. Na3 {[%clk 01:25:58]}
{[%emt 00:02:29]} Qb6 {[%clk 01:27:01]} {[%emt 00:02:02]} 8. b3 {[%clk
01:13:57]} {[%emt 00:12:12]} d5 {[%clk 01:20:48]} {[%emt 00:06:22]} 9. Bb2
{[%clk 01:10:19]} {[%emt 00:03:48]} Be7 {[%clk 01:19:37]} {[%emt 00:01:21]} 10.
cxd5 {[%clk 01:08:49]} {[%emt 00:01:41]} Bxd5 {[%clk 01:19:24]} {[%emt
00:00:23]} 11. Nc2 {[%clk 01:07:46]} {[%emt 00:01:12]} O-O {[%clk 01:19:16]}
{[%emt 00:00:18]} 12. Rc1 {[%clk 01:05:31]} {[%emt 00:02:26]} Rd8 {[%clk
01:15:10]} {[%emt 00:04:16]} 13. Ne3 {[%clk 01:02:48]} {[%emt 00:02:53]} Bb7
{[%clk 01:15:06]} {[%emt 00:00:14]} 14. Qc2 {[%clk 01:02:49]} {[%emt 00:00:08]}
Nc6 {[%clk 01:13:44]} {[%emt 00:01:33]} 15. Rfe1 {[%clk 00:49:34]} {[%emt
00:13:24]} Rac8 {[%clk 01:12:31]} {[%emt 00:01:22]} 16. Qb1 {[%clk 00:47:26]}
{[%emt 00:02:18]} Ne8 {[%clk 01:05:13]} {[%emt 00:07:29]} 17. Qa1 {[%clk
00:44:29]} {[%emt 00:03:06]} Bf6 {[%clk 01:03:33]} {[%emt 00:01:50]} 18. a3
{[%clk 00:37:04]} {[%emt 00:07:36]} Bxb2 {[%clk 00:55:50]} {[%emt 00:07:53]} 19.
Qxb2 {[%clk 00:37:06]} {[%emt 00:00:07]} Nd4 {[%clk 00:54:27]} {[%emt
00:01:33]} 20. Nxd4 {[%clk 00:35:19]} {[%emt 00:01:57]} cxd4 {[%clk 00:54:29]}
{[%emt 00:00:08]} 21. Nf1 {[%clk 00:34:02]} {[%emt 00:01:27]} Bxg2 {[%clk
00:53:45]} {[%emt 00:00:55]} 22. Kxg2 {[%clk 00:34:05]} {[%emt 00:00:07]} e5
{[%clk 00:29:57]} {[%emt 00:23:58]} 23. Nd2 {[%clk 00:33:31]} {[%emt 00:00:43]}
Nc7 {[%clk 00:27:02]} {[%emt 00:03:05]} 24. b4 {[%clk 00:30:37]} {[%emt
00:03:04]} Qb7+ {[%clk 00:25:31]} {[%emt 00:01:41]} 25. Kg1 {[%clk 00:30:40]}
{[%emt 00:00:07]} Ne6 {[%clk 00:25:12]} {[%emt 00:00:30]} 26. Ne4 {[%clk
00:28:04]} {[%emt 00:02:46]} Qd5 {[%clk 00:21:22]} {[%emt 00:03:59]} 27. Rxc8
{[%clk 00:26:15]} {[%emt 00:01:59]} Rxc8 {[%clk 00:21:28]} {[%emt 00:00:05]} 28.
Rc1 {[%clk 00:26:18]} {[%emt 00:00:06]} Rc6 {[%clk 00:20:34]} {[%emt 00:01:04]}
29. Rxc6 {[%clk 00:22:51]} {[%emt 00:03:38]} Qxc6 {[%clk 00:20:38]} {[%emt
00:00:06]} 30. Nc5 {[%clk 00:20:27]} {[%emt 00:02:35]} Nxc5 {[%clk 00:19:12]}
{[%emt 00:01:36]} 31. Qc1 {[%clk 00:20:21]} {[%emt 00:00:16]} f6 {[%clk
00:15:37]} {[%emt 00:03:45]} 32. bxc5 {[%clk 00:20:10]} {[%emt 00:00:21]} Kf7
{[%clk 00:15:32]} {[%emt 00:00:14]} 33. e3 {[%clk 00:17:30]} {[%emt 00:02:50]}
Ke6 {[%clk 00:14:49]} {[%emt 00:00:54]} 34. exd4 {[%clk 00:13:03]} {[%emt
00:04:37]} exd4 {[%clk 00:14:48]} {[%emt 00:00:11]} 35. Qe1+ {[%clk 00:12:56]}
{[%emt 00:00:18]} Kd7 {[%clk 00:06:35]} {[%emt 00:08:22]} 36. Qb4 {[%clk
00:12:23]} {[%emt 00:00:43]} Qd5 {[%clk 00:06:39]} {[%emt 00:00:06]} 37. Qa5
{[%clk 00:12:19]} {[%emt 00:00:14]} Qc6 {[%clk 00:05:46]} {[%emt 00:01:03]} 38.
Qb4 {[%clk 00:12:11]} {[%emt 00:00:18]} Qd5 {[%clk 00:05:50]} {[%emt 00:00:05]}
39. Qa5 {[%clk 00:12:10]} {[%emt 00:00:11]} 1/2-1/2

[Event "KNSB Bekerfinale"]
[Site "Haarlem, Netherlands"]
[Date "????.??.??"]
[Round "1.3"]
[White "Burg, Twan"]
[Black "Grutter, Tim"]
[Result "1/2-1/2"]
[TimeControl "100 minutes + increment 10 seconds"]
[WhiteTitle "GM"]
[BlackTitle "FM"]
[WhiteFideId "1010697"]
[BlackFideId "1057472"]
[WhiteElo "2506"]
[BlackElo "2326"]

1. e4 {[%clk 01:40:16]} {[%emt 00:00:04]} e5 {[%clk 01:40:06]} {[%emt
00:00:14]} 2. Nf3 {[%clk 01:40:17]} {[%emt 00:00:09]} Nc6 {[%clk 01:40:08]}
{[%emt 00:00:09]} 3. d4 {[%clk 01:39:16]} {[%emt 00:01:11]} exd4 {[%clk
01:40:10]} {[%emt 00:00:07]} 4. Nxd4 {[%clk 01:39:21]} {[%emt 00:00:04]} Nf6
{[%clk 01:40:15]} {[%emt 00:00:06]} 5. Nc3 {[%clk 01:39:20]} {[%emt 00:00:12]}
Bb4 {[%clk 01:39:40]} {[%emt 00:00:45]} 6. Nxc6 {[%clk 01:39:10]} {[%emt
00:00:19]} bxc6 {[%clk 01:39:26]} {[%emt 00:00:24]} 7. Bd3 {[%clk 01:38:59]}
{[%emt 00:00:22]} O-O {[%clk 01:37:00]} {[%emt 00:02:36]} 8. O-O {[%clk
01:39:00]} {[%emt 00:00:08]} Re8 {[%clk 01:33:24]} {[%emt 00:03:46]} 9. Re1
{[%clk 01:30:04]} {[%emt 00:09:06]} d6 {[%clk 01:29:09]} {[%emt 00:04:25]} 10.
a3 {[%clk 01:27:58]} {[%emt 00:02:16]} Bxc3 {[%clk 01:23:02]} {[%emt 00:06:17]}
11. bxc3 {[%clk 01:26:31]} {[%emt 00:01:37]} Nd7 {[%clk 01:17:42]} {[%emt
00:05:29]} 12. Rb1 {[%clk 01:24:38]} {[%emt 00:02:04]} Nc5 {[%clk 01:14:11]}
{[%emt 00:03:41]} 13. c4 {[%clk 01:22:28]} {[%emt 00:02:19]} Be6 {[%clk
01:04:55]} {[%emt 00:09:26]} 14. Qh5 {[%clk 01:19:36]} {[%emt 00:03:02]} Rb8
{[%clk 00:52:40]} {[%emt 00:12:26]} 15. Be3 {[%clk 01:14:25]} {[%emt 00:05:21]}
Nxd3 {[%clk 00:50:39]} {[%emt 00:02:11]} 16. cxd3 {[%clk 01:14:24]} {[%emt
00:00:11]} c5 {[%clk 00:49:30]} {[%emt 00:01:20]} 17. Qe2 {[%clk 01:07:22]}
{[%emt 00:07:11]} Rb6 {[%clk 00:42:23]} {[%emt 00:07:17]} 18. g4 {[%clk
01:05:19]} {[%emt 00:02:12]} Qh4 {[%clk 00:39:02]} {[%emt 00:03:32]} 19. f3
{[%emt 00:06:29]} Reb8 {[%clk 00:36:20]} 20. Rxb6 {[%clk 01:00:33]} {[%emt
00:01:29]} Rxb6 {[%clk 00:35:10]} {[%emt 00:01:20]} 21. Qf2 {[%clk 01:00:24]}
{[%emt 00:00:19]} Qxf2+ {[%clk 00:33:08]} {[%emt 00:02:12]} 22. Kxf2 {[%clk
01:00:22]} {[%emt 00:00:12]} Rb2+ {[%clk 00:31:25]} {[%emt 00:01:53]} 23. Re2
{[%clk 00:59:53]} {[%emt 00:00:38]} Rb3 {[%clk 00:30:48]} {[%emt 00:00:47]} 24.
Bc1 {[%clk 00:59:48]} {[%emt 00:00:14]} Rxd3 {[%clk 00:28:43]} {[%emt
00:02:16]} 25. Rb2 {[%clk 00:59:46]} {[%emt 00:00:12]} Kf8 {[%clk 00:27:00]}
{[%emt 00:01:53]} 26. Rb7 {[%clk 00:58:57]} {[%emt 00:00:58]} Rc3 {[%clk
00:23:49]} {[%emt 00:03:22]} 27. Bf4 {[%clk 00:58:15]} {[%emt 00:00:52]} Rxa3
{[%clk 00:22:24]} {[%emt 00:01:35]} 28. Rxc7 {[%clk 00:58:10]} {[%emt
00:00:16]} Ra6 {[%clk 00:21:07]} {[%emt 00:01:27]} 29. e5 {[%clk 00:57:57]}
{[%emt 00:00:23]} dxe5 {[%clk 00:19:34]} {[%emt 00:01:43]} 30. Bxe5 {[%clk
00:58:05]} {[%emt 00:00:01]} f6 {[%clk 00:18:34]} {[%emt 00:01:11]} 31. Bf4
{[%clk 00:57:39]} {[%emt 00:00:36]} Bxc4 {[%clk 00:18:02]} {[%emt 00:00:42]} 32.
Be3 {[%clk 00:55:52]} {[%emt 00:01:57]} Ra2+ {[%clk 00:16:18]} {[%emt
00:01:53]} 33. Kg3 {[%clk 00:51:24]} {[%emt 00:04:39]} a5 {[%clk 00:11:57]}
{[%emt 00:04:31]} 34. Bxc5+ {[%clk 00:49:51]} {[%emt 00:01:43]} Kg8 {[%clk
00:12:01]} {[%emt 00:00:06]} 35. Bd4 {[%clk 00:48:11]} {[%emt 00:01:49]} Bf1
{[%clk 00:11:02]} {[%emt 00:01:09]} 36. h4 {[%clk 00:47:13]} {[%emt 00:01:08]}
h6 {[%clk 00:10:17]} {[%emt 00:00:56]} 37. Rc8+ {[%clk 00:45:15]} {[%emt
00:02:07]} Kh7 {[%clk 00:10:08]} {[%emt 00:00:18]} 38. Rc7 {[%clk 00:44:40]}
{[%emt 00:00:46]} Kg8 {[%clk 00:10:10]} {[%emt 00:00:08]} 39. Rc8+ {[%clk
00:44:40]} {[%emt 00:00:10]} Kh7 {[%clk 00:10:15]} {[%emt 00:00:04]} 40. Rc1
{[%clk 00:38:20]} {[%emt 00:06:30]} Be2 {[%clk 00:09:25]} {[%emt 00:01:00]} 41.
Rc7 {[%clk 00:36:29]} {[%emt 00:02:01]} Kg8 {[%clk 00:08:06]} {[%emt 00:01:29]}
42. g5 {[%clk 00:35:35]} {[%emt 00:01:04]} hxg5 {[%clk 00:06:56]} {[%emt
00:01:20]} 43. hxg5 {[%clk 00:35:39]} {[%emt 00:00:06]} fxg5 {[%clk 00:06:31]}
{[%emt 00:00:36]} 44. Rxg7+ {[%clk 00:35:14]} {[%emt 00:00:34]} Kf8 {[%clk
00:06:35]} {[%emt 00:00:06]} 45. Rxg5 {[%clk 00:35:18]} {[%emt 00:00:06]} a4
{[%clk 00:05:20]} {[%emt 00:01:26]} 46. Ra5 {[%clk 00:34:55]} {[%emt 00:00:31]}
Bd1 {[%clk 00:03:04]} {[%emt 00:02:26]} 47. f4 {[%clk 00:34:32]} {[%emt
00:00:34]} Rd2 {[%clk 00:02:40]} {[%emt 00:00:34]} 48. Bc5+ {[%clk 00:32:55]}
{[%emt 00:01:47]} Kf7 {[%clk 00:02:47]} {[%emt 00:00:02]} 49. f5 {[%clk
00:32:58]} {[%emt 00:00:07]} Rd5 {[%clk 00:02:04]} {[%emt 00:00:53]} 50. Kf4
{[%clk 00:32:51]} {[%emt 00:00:18]} Bc2 {[%clk 00:01:54]} {[%emt 00:00:19]} 51.
Ra7+ {[%clk 00:32:25]} {[%emt 00:00:36]} Ke8 {[%clk 00:01:58]} {[%emt
00:00:06]} 52. Re7+ {[%clk 00:32:22]} {[%emt 00:00:13]} Kd8 {[%clk 00:02:03]}
{[%emt 00:00:06]} 53. Re5 {[%clk 00:32:18]} {[%emt 00:00:14]} Rxe5 {[%clk
00:02:09]} {[%emt 00:00:04]} 54. Kxe5 {[%clk 00:32:25]} {[%emt 00:00:03]} Bxf5
{[%clk 00:02:16]} {[%emt 00:00:03]} 55. Kxf5 {[%clk 00:32:31]} {[%emt
00:00:03]} a3 {[%clk 00:02:24]} {[%emt 00:00:02]} 56. Bxa3 {[%clk 00:32:27]}
{[%emt 00:00:04]} 1/2-1/2

[Event "KNSB Bekerfinale"]
[Site "Haarlem, Netherlands"]
[Date "????.??.??"]
[Round "1.4"]
[White "Boeren, Jurriaan"]
[Black "Bosch, Jeroen"]
[Result "0-1"]
[TimeControl "100 minutes + increment 10 seconds"]
[BlackTitle "IM"]
[WhiteFideId "1067478"]
[BlackFideId "1001280"]
[WhiteElo "2178"]
[BlackElo "2393"]

1. e4 {[%clk 01:40:17]} {[%emt 00:00:02]} Nf6 {[%clk 01:39:37]} {[%emt
00:00:43]} 2. e5 {[%clk 01:39:41]} {[%emt 00:00:46]} Nd5 {[%clk 01:39:33]}
{[%emt 00:00:16]} 3. d4 {[%clk 01:39:40]} {[%emt 00:00:10]} d6 {[%clk
01:39:38]} {[%emt 00:00:05]} 4. c4 {[%clk 01:39:13]} {[%emt 00:00:37]} Nb6
{[%clk 01:39:44]} {[%emt 00:00:04]} 5. exd6 {[%clk 01:39:16]} {[%emt 00:00:07]}
cxd6 {[%clk 01:39:48]} {[%emt 00:00:05]} 6. Nc3 {[%clk 01:39:15]} {[%emt
00:00:11]} g6 {[%clk 01:39:49]} {[%emt 00:00:10]} 7. Be3 {[%clk 01:39:07]}
{[%emt 00:00:17]} Bg7 {[%clk 01:39:54]} {[%emt 00:00:05]} 8. Rc1 {[%clk
01:39:02]} {[%emt 00:00:15]} O-O {[%clk 01:39:59]} {[%emt 00:00:06]} 9. b3
{[%clk 01:38:51]} {[%emt 00:00:21]} N6d7 {[%clk 01:39:46]} {[%emt 00:00:23]} 10.
Be2 {[%clk 01:34:31]} {[%emt 00:04:30]} Nf6 {[%clk 01:39:17]} {[%emt 00:00:39]}
11. h3 {[%clk 01:28:27]} {[%emt 00:06:13]} d5 {[%clk 01:37:59]} {[%emt
00:01:29]} 12. Nf3 {[%clk 01:26:35]} {[%emt 00:02:02]} Nc6 {[%clk 01:38:02]}
{[%emt 00:00:06]} 13. O-O {[%clk 01:24:46]} {[%emt 00:01:59]} Bf5 {[%clk
01:37:26]} {[%emt 00:00:46]} 14. Re1 {[%clk 01:08:15]} {[%emt 00:16:41]} Rc8
{[%clk 01:26:25]} {[%emt 00:11:11]} 15. c5 {[%clk 00:57:40]} {[%emt 00:10:45]}
Ne4 {[%clk 01:07:10]} {[%emt 00:19:25]} 16. Bd3 {[%clk 00:33:01]} {[%emt
00:24:49]} Nxc3 {[%clk 00:51:44]} {[%emt 00:15:36]} 17. Rxc3 {[%clk 00:32:57]}
{[%emt 00:00:14]} Be4 {[%clk 00:51:41]} {[%emt 00:00:13]} 18. Be2 {[%clk
00:25:01]} {[%emt 00:08:06]} Qa5 {[%clk 00:51:17]} {[%emt 00:00:33]} 19. Qd2
{[%clk 00:22:02]} {[%emt 00:03:09]} Rfd8 {[%clk 00:42:23]} {[%emt 00:09:04]} 20.
Rd1 {[%clk 00:18:53]} {[%emt 00:03:20]} e5 {[%clk 00:34:07]} {[%emt 00:08:26]}
21. Nxe5 {[%clk 00:09:08]} {[%emt 00:09:54]} Bxe5 {[%clk 00:33:45]} {[%emt
00:00:32]} 22. dxe5 {[%clk 00:08:18]} {[%emt 00:01:00]} d4 {[%clk 00:32:45]}
{[%emt 00:01:10]} 23. Rcc1 {[%clk 00:03:02]} {[%emt 00:05:26]} dxe3 {[%clk
00:32:36]} {[%emt 00:00:19]} 24. Qxe3 {[%clk 00:03:01]} {[%emt 00:00:11]} Bd5
{[%clk 00:30:54]} {[%emt 00:01:51]} 25. Bg4 {[%clk 00:02:22]} {[%emt 00:00:51]}
Rb8 {[%clk 00:26:33]} {[%emt 00:04:31]} 26. e6 {[%clk 00:01:26]} {[%emt
00:01:06]} Qc7 {[%clk 00:26:13]} {[%emt 00:00:30]} 27. h4 {[%clk 00:00:30]}
{[%emt 00:01:06]} Bxe6 {[%clk 00:23:57]} {[%emt 00:02:26]} 28. Bxe6 {[%clk
00:00:31]} {[%emt 00:00:09]} fxe6 {[%clk 00:24:02]} {[%emt 00:00:04]} 29. Qxe6+
{[%emt 00:00:28]} Qf7 {[%clk 00:24:03]} 30. Qg4 {[%clk 00:00:15]} {[%emt
00:00:18]} Rxd1+ {[%clk 00:20:00]} {[%emt 00:04:13]} 31. Rxd1 {[%clk 00:00:23]}
{[%emt 00:00:02]} Rf8 {[%clk 00:20:03]} {[%emt 00:00:06]} 32. f3 {[%clk
00:00:14]} {[%emt 00:00:20]} Qf5 {[%clk 00:16:48]} {[%emt 00:03:25]} 33. Qc4+
{[%clk 00:00:13]} {[%emt 00:00:11]} Rf7 {[%clk 00:16:52]} {[%emt 00:00:06]} 0-1

[Event "KNSB Bekerfinale"]
[Site "Haarlem, Netherlands"]
[Date "????.??.??"]
[Round "1.5"]
[White "De Jong, Jan-Willem"]
[Black "Warmerdam, Max"]
[Result "0-1"]
[TimeControl "100 minutes + increment 10 seconds"]
[WhiteTitle "IM"]
[BlackTitle "GM"]
[WhiteFideId "1008641"]
[BlackFideId "1048104"]
[WhiteElo "2398"]
[BlackElo "2631"]

1. c4 {[%clk 01:40:13]} {[%emt 00:00:07]} e6 {[%clk 01:40:13]} {[%emt
00:00:07]} 2. Nc3 {[%clk 01:37:50]} {[%emt 00:02:33]} d5 {[%clk 01:40:17]}
{[%emt 00:00:06]} 3. d4 {[%clk 01:37:56]} {[%emt 00:00:04]} Nf6 {[%clk
01:40:22]} {[%emt 00:00:06]} 4. cxd5 {[%clk 01:37:03]} {[%emt 00:01:03]} exd5
{[%clk 01:40:24]} {[%emt 00:00:07]} 5. Bg5 {[%clk 01:37:05]} {[%emt 00:00:08]}
c6 {[%clk 01:40:23]} {[%emt 00:00:11]} 6. e3 {[%clk 01:36:52]} {[%emt
00:00:24]} h6 {[%clk 01:40:24]} {[%emt 00:00:08]} 7. Bh4 {[%clk 01:36:34]}
{[%emt 00:00:28]} Be7 {[%clk 01:40:28]} {[%emt 00:00:06]} 8. Bd3 {[%clk
01:35:41]} {[%emt 00:01:02]} O-O {[%clk 01:40:30]} {[%emt 00:00:08]} 9. Nge2
{[%clk 01:32:46]} {[%emt 00:03:06]} Re8 {[%clk 01:39:11]} {[%emt 00:01:29]} 10.
O-O {[%clk 01:31:02]} {[%emt 00:01:54]} a5 {[%clk 01:39:03]} {[%emt 00:00:18]}
11. Qc2 {[%clk 01:27:59]} {[%emt 00:03:13]} Na6 {[%clk 01:37:37]} {[%emt
00:01:36]} 12. a3 {[%clk 01:27:45]} {[%emt 00:00:24]} Nc7 {[%clk 01:37:33]}
{[%emt 00:00:13]} 13. Rad1 {[%clk 01:25:35]} {[%emt 00:02:20]} Ne6 {[%clk
01:35:43]} {[%emt 00:02:00]} 14. h3 {[%clk 01:22:40]} {[%emt 00:03:05]} Bd7
{[%clk 01:26:13]} {[%emt 00:09:40]} 15. Bxf6 {[%clk 01:11:18]} {[%emt
00:11:32]} Bxf6 {[%clk 01:25:50]} {[%emt 00:00:31]} 16. e4 {[%clk 01:11:26]}
{[%emt 00:00:04]} dxe4 {[%clk 01:11:45]} {[%emt 00:14:15]} 17. Nxe4 {[%clk
01:09:11]} {[%emt 00:02:26]} Be7 {[%clk 01:11:47]} {[%emt 00:00:07]} 18. Bc4
{[%clk 01:05:44]} {[%emt 00:03:37]} b5 {[%clk 01:04:51]} {[%emt 00:07:06]} 19.
Ba2 {[%clk 01:05:17]} {[%emt 00:00:38]} Bf8 {[%clk 01:03:49]} {[%emt 00:01:11]}
20. d5 {[%clk 00:52:42]} {[%emt 00:12:45]} cxd5 {[%clk 01:01:31]} {[%emt
00:02:28]} 21. Rxd5 {[%clk 00:52:46]} {[%emt 00:00:06]} Qc8 {[%clk 00:34:30]}
{[%emt 00:27:11]} 22. Qd3 {[%clk 00:46:14]} {[%emt 00:06:42]} Bc6 {[%clk
00:33:16]} {[%emt 00:01:25]} 23. Bb1 {[%clk 00:41:56]} {[%emt 00:04:27]} g6
{[%clk 00:29:24]} {[%emt 00:04:02]} 24. Nf6+ {[%clk 00:30:34]} {[%emt
00:11:32]} Kh8 {[%clk 00:29:05]} {[%emt 00:00:29]} 25. Nxe8 {[%clk 00:17:51]}
{[%emt 00:12:53]} Bxd5 {[%clk 00:28:14]} {[%emt 00:01:01]} 26. Qxd5 {[%clk
00:17:44]} {[%emt 00:00:18]} Qxe8 {[%clk 00:28:18]} {[%emt 00:00:05]} 27. Nc3
{[%clk 00:14:57]} {[%emt 00:02:57]} b4 {[%clk 00:27:44]} {[%emt 00:00:45]} 28.
axb4 {[%clk 00:13:48]} {[%emt 00:01:19]} axb4 {[%clk 00:27:48]} {[%emt
00:00:06]} 29. Ne4 {[%clk 00:13:29]} {[%emt 00:00:28]} Rd8 {[%clk 00:26:30]}
{[%emt 00:01:28]} 30. Qc4 {[%clk 00:11:01]} {[%emt 00:02:38]} Rd4 {[%clk
00:26:15]} {[%emt 00:00:25]} 31. Qc1 {[%clk 00:08:49]} {[%emt 00:02:22]} Qa8
{[%clk 00:21:53]} {[%emt 00:04:32]} 32. Re1 {[%clk 00:06:35]} {[%emt 00:02:24]}
Bg7 {[%clk 00:21:36]} {[%emt 00:00:27]} 33. b3 {[%clk 00:05:11]} {[%emt
00:01:35]} Qd5 {[%clk 00:21:09]} {[%emt 00:00:36]} 34. Qc8+ {[%clk 00:04:26]}
{[%emt 00:00:55]} Kh7 {[%clk 00:20:41]} {[%emt 00:00:37]} 35. Bc2 {[%clk
00:03:52]} {[%emt 00:00:44]} Nf4 {[%clk 00:16:21]} {[%emt 00:04:30]} 36. Re3
{[%clk 00:01:08]} {[%emt 00:02:55]} f5 {[%clk 00:07:49]} {[%emt 00:08:42]} 37.
Qc7 {[%clk 00:01:16]} {[%emt 00:00:01]} fxe4 {[%clk 00:07:46]} {[%emt
00:00:13]} 38. Qxf4 {[%clk 00:01:22]} {[%emt 00:00:04]} Be5 {[%clk 00:07:50]}
{[%emt 00:00:05]} 39. Qg4 {[%clk 00:00:41]} {[%emt 00:00:52]} h5 {[%clk
00:07:56]} {[%emt 00:00:04]} 40. Qe2 {[%clk 00:00:15]} {[%emt 00:00:36]} Rd2
{[%clk 00:08:01]} {[%emt 00:00:04]} 41. Bxe4 {[%clk 00:00:11]} {[%emt
00:00:15]} Rd1+ {[%clk 00:08:04]} {[%emt 00:00:07]} 0-1